fUST/lending_fUST_20250522
["ID","MTS","AMOUNT","RATE_DAILY","PERIOD"]
[361859721,1747848642194,-541.36743639,0.00021917,2]
[361859722,1747848642203,-430.0,0.00021917,2]
[361859723,1747848642212,-430.0,0.00021917,2]
[361859724,1747848642222,-430.0,0.00021917,2]
[361859725,1747848642232,-430.98346505,0.00021917,2]
[361859726,1747848642241,-430.0,0.00021917,2]
[361859727,1747848642251,-430.64355529,0.00021917,2]
[361859728,1747848642261,-430.0,0.00021917,2]
[361859729,1747848642270,-151.0,0.00021917,2]
[361859730,1747848642280,-430.0,0.00021917,2]
[361859731,1747848642289,-430.0,0.00021917,2]
[361859732,1747848642299,-430.0,0.00021917,2]
[361859733,1747848642308,-151.0,0.00021917,2]
[361859734,1747848642318,-430.0,0.00021917,2]
[361859735,1747848642327,-430.0,0.00021917,2]
[361859736,1747848642337,-430.0,0.00021917,2]
[361859737,1747848642347,-430.0,0.00021917,2]
[361859738,1747848642356,-476.54,0.00021917,2]
[361859739,1747848642366,-430.0,0.00021917,2]
[361859740,1747848642377,-314.7704918,0.00021917,2]
[361859741,1747848642387,-430.0,0.00021917,2]
[361859742,1747848642398,-430.0,0.00021917,2]
[361859744,1747848642407,-430.0,0.00021917,2]
[361859746,1747848642416,-430.0,0.00021917,2]
[361859748,1747848642426,-430.0,0.00021917,2]
[361859750,1747848642441,-322.53887933,0.00021917,2]
[361859752,1747848642451,-576.87,0.00021917,2]
[361859754,1747848642461,-430.0,0.00021917,2]
[361859756,1747848642470,-430.0,0.00021917,2]
[361859758,1747848642480,-430.4076721,0.00021917,2]
[361859760,1747848642491,-11865.584,0.00021948,21]
[361859761,1747848642501,-151.0,0.00021948,7]
[361859763,1747848642511,-151.0,0.00021948,7]
[361859765,1747848642521,-270.620227,0.00021948,7]
[361859768,1747848642531,-151.0,0.00021948,7]
[361859769,1747848642542,-151.0,0.00021948,7]
[361859771,1747848642552,-151.0,0.00021948,7]
[361859772,1747848642562,-27378.36976304,0.00021948,12]
[361859773,1747848642572,-20023.9583,0.00021948,14]
[361859775,1747848642583,-506.04841963,0.00021973,2]
[361859776,1747848642593,-500.0,0.00021973,2]
[361859777,1747848642604,-500.0,0.00021973,2]
[361859778,1747848642615,-421.9141359,0.00021973,2]
[361859779,1747848642625,-500.0,0.00021973,2]
[361859780,1747848642636,-500.0,0.00021973,2]
[361859782,1747848642647,-500.0,0.00021973,2]
[361859784,1747848642658,-585.60806313,0.00021973,2]
[361859785,1747848642669,-500.0,0.00021973,2]
[361859786,1747848642679,-500.0,0.00021973,2]
[361859787,1747848642698,-162.0,0.00022,2]
[361859788,1747848642709,-366.8590598,0.00022015,2]
[361859789,1747848642720,-1476.70210682,0.00022038,6]
[361859790,1747848642731,-927.86335928,0.00022091,2]
[361859791,1747848642742,-500.0,0.0002219,2]
[361859792,1747848642754,-500.0,0.0002219,2]
[361859793,1747848642765,-851.3921968,0.00022191,2]
[361859794,1747848642775,-10015.85253813,0.00022191,3]
[361859795,1747848642785,-430.0,0.00022191,2]
[361859796,1747848642795,-450.0,0.00022191,2]
[361859797,1747848642805,-430.0,0.00022191,2]
[361859798,1747848642814,-430.0,0.00022191,2]
[361859799,1747848642824,-430.0,0.00022191,2]
[361859800,1747848642835,-430.0,0.00022191,2]
[361859801,1747848642847,-161.79,0.00022191,2]
[361859802,1747848642858,-430.0,0.00022191,2]
[361859803,1747848642868,-435.52434879,0.00022191,2]
[361859804,1747848642878,-434.51978801,0.00022191,2]
[361859805,1747848642888,-436.02310407,0.00022191,2]
[361859806,1747848642898,-436.35092718,0.00022191,2]
[361859807,1747848642908,-443.22463869,0.00022191,2]
[361859808,1747848642918,-436.00544376,0.00022191,2]
[361859809,1747848642927,-404.96383769,0.00022191,2]
[361859811,1747848642943,-441.58536558,0.00022191,2]
[361859812,1747848642953,-430.0,0.00022191,2]
[361859813,1747848642963,-430.98,0.00022191,2]
[361859815,1747848642973,-437.71007163,0.00022191,2]
[361859816,1747848642982,-430.0,0.00022191,2]
[361859817,1747848642994,-442.12491051,0.00022191,2]
[361859818,1747848643004,-430.0,0.00022191,2]
[361859819,1747848643014,-430.0,0.00022191,2]
[361859820,1747848643024,-430.0,0.00022191,2]
[361859822,1747848643033,-336.6361336,0.00022191,2]
[361859823,1747848643043,-345.4640596,0.00022191,2]
[361859824,1747848643052,-430.0,0.00022191,2]
[361859826,1747848643062,-434.42318492,0.00022191,2]
[361859827,1747848643071,-432.22,0.00022191,2]
[361859829,1747848643081,-430.0,0.00022191,2]
[361859830,1747848643092,-472.19413818,0.00022191,2]
[361859831,1747848643101,-498.03252872,0.00022191,2]
[361859833,1747848643111,-440.87080426,0.00022191,2]
[361859834,1747848643120,-434.90034739,0.00022191,2]
[361859836,1747848643129,-430.0,0.00022191,2]
[361859837,1747848643139,-434.98442167,0.00022191,2]
[361859838,1747848643148,-440.26517681,0.00022191,2]
[361859839,1747848643158,-430.0,0.00022191,2]
[361859840,1747848643168,-435.39002922,0.00022191,2]
[361859841,1747848643177,-436.83467389,0.00022191,2]
[361859842,1747848643191,-400.0,0.00022191,2]
[361859843,1747848643201,-434.0190119,0.00022191,2]
[361859844,1747848643210,-430.0,0.00022191,2]
[361859845,1747848643219,-430.0,0.00022191,2]
[361859847,1747848643228,-435.35967499,0.00022191,2]
[361859848,1747848643238,-430.26799731,0.00022191,2]
[361859849,1747848643247,-431.11863513,0.00022191,2]
[361859851,1747848643260,-430.0,0.00022191,2]
[361859852,1747848643271,-464.39286384,0.00022191,2]
[361859854,1747848643280,-521.9369699,0.00022191,2]
[361859855,1747848643289,-400.0,0.00022191,2]
[361859857,1747848643299,-441.75737556,0.00022191,2]
[361859858,1747848643310,-430.0,0.00022191,2]
[361859859,1747848643321,-430.0,0.00022191,2]
[361859860,1747848643337,-437.69743656,0.00022191,2]
[361859861,1747848643346,-430.0,0.00022191,2]
[361859863,1747848643355,-435.71153475,0.00022191,2]
[361859864,1747848643365,-393.74245631,0.00022191,2]
[361859866,1747848643375,-442.27976292,0.00022191,2]
[361859867,1747848643384,-203.74403596,0.00022191,2]
[361859869,1747848643394,-441.65195025,0.00022191,2]
[361859870,1747848643403,-430.0,0.00022191,2]
[361859872,1747848643413,-430.0,0.00022191,2]
[361859873,1747848643422,-430.0,0.00022191,2]
[361859875,1747848643432,-450.61347512,0.00022191,2]
[361859876,1747848643447,-430.0,0.00022191,2]
[361859878,1747848643457,-430.0,0.00022191,2]
[361859879,1747848643468,-436.22800147,0.00022191,2]
[361859881,1747848643479,-433.50589293,0.00022191,2]
[361859882,1747848643489,-430.0,0.00022191,2]
[361859884,1747848643498,-430.0,0.00022191,2]
[361859885,1747848643508,-430.0,0.00022191,2]
[361859888,1747848643517,-430.0,0.00022191,2]
[361859889,1747848643526,-440.39180069,0.00022191,2]
[361859891,1747848643536,-430.0,0.00022191,2]
[361859892,1747848643546,-430.0,0.00022191,2]
[361859894,1747848643555,-423.76215178,0.00022191,2]
[361859895,1747848643564,-430.0,0.00022191,2]
[361859897,1747848643574,-216.82332858,0.00022191,2]
[361859898,1747848643583,-430.0,0.00022191,2]
[361859900,1747848643592,-430.0,0.00022191,2]
[361859901,1747848643602,-434.63568551,0.00022191,2]
[361859903,1747848643612,-426.78558635,0.00022191,2]
[361859904,1747848643622,-432.34084179,0.00022191,2]
[361859906,1747848643631,-430.0,0.00022191,2]
[361859907,1747848643641,-374.484381,0.00022191,2]
[361859909,1747848643650,-430.0,0.00022191,2]
[361859910,1747848643660,-374.25078145,0.00022191,2]
[361859912,1747848643669,-509.46108759,0.00022191,2]
[361859913,1747848643679,-151.0,0.00022191,7]
[361859915,1747848643694,-1986.19,0.00022191,2]
[361859916,1747848643703,-190.56416107,0.00022191,2]
[361859918,1747848643712,-430.0,0.00022191,2]
[361859919,1747848643724,-151.0,0.00022191,7]
[361859921,1747848643734,-440.00139921,0.00022191,2]
[361859923,1747848643744,-151.0,0.00022191,7]
[361859924,1747848643757,-560.00000007,0.00022191,2]
[361859926,1747848643766,-430.0,0.00022191,2]
[361859927,1747848643776,-401.78527147,0.00022191,2]
[361859929,1747848643786,-430.0,0.00022191,2]
[361859930,1747848643796,-430.0,0.00022191,2]
[361859932,1747848643897,-430.0,0.00022191,2]
[361859933,1747848643921,-430.0,0.00022191,2]
[361859934,1747848643931,-430.0,0.00022191,2]
[361859935,1747848643948,-430.0,0.00022191,2]
[361859936,1747848643957,-400.8738898,0.00022191,2]
[361859937,1747848643967,-430.0,0.00022191,2]
[361859938,1747848643978,-430.0,0.00022191,2]
[361859939,1747848643988,-430.0,0.00022191,2]
[361859940,1747848643998,-430.0,0.00022191,2]
[361859941,1747848644008,-400.0,0.00022191,2]
[361859942,1747848644018,-415.85631861,0.00022191,2]
[361859943,1747848644028,-430.0,0.00022191,2]
[361859944,1747848644038,-430.0,0.00022191,2]
[361859945,1747848644047,-430.0,0.00022191,2]
[361859946,1747848644057,-430.0,0.00022191,2]
[361859947,1747848644066,-430.0,0.00022191,2]
[361859948,1747848644076,-400.0,0.00022191,2]
[361859950,1747848644086,-430.0,0.00022191,2]
[361859951,1747848644095,-450.0,0.00022191,2]
[361859952,1747848644104,-430.0,0.00022191,2]
[361859954,1747848644115,-430.0,0.00022191,2]
[361859956,1747848644125,-500.0,0.00022191,2]
[361859957,1747848644134,-436.44515137,0.00022191,2]
[361859959,1747848644144,-430.0,0.00022191,2]
[361859961,1747848644154,-430.0,0.00022191,2]
[361859963,1747848644163,-430.0,0.00022191,2]
[361859965,1747848644172,-334.44361594,0.00022191,2]
[361859967,1747848644182,-430.0,0.00022191,2]
[361859969,1747848644197,-431.08733798,0.00022191,2]
[361859971,1747848644207,-436.00127569,0.00022191,2]
[361859973,1747848644217,-430.0,0.00022191,2]
[361859975,1747848644226,-430.0,0.00022191,2]
[361859977,1747848644236,-430.0,0.00022191,2]
[361859979,1747848644245,-436.90026953,0.00022191,2]
[361859981,1747848644257,-430.0,0.00022191,2]
[361859983,1747848644267,-439.09984828,0.00022191,2]
[361859985,1747848644276,-430.0,0.00022191,2]
[361859987,1747848644286,-433.43119107,0.00022191,2]
[361859989,1747848644295,-373.64927178,0.00022191,2]
[361859991,1747848644305,-500.0,0.00022191,2]
[361859993,1747848644314,-430.0,0.00022191,2]
[361859995,1747848644323,-431.03184839,0.00022191,2]
[361859997,1747848644333,-430.0,0.00022191,2]
[361859999,1747848644342,-430.0,0.00022191,2]
[361860001,1747848644352,-387.49351454,0.00022191,2]
[361860003,1747848644362,-430.0,0.00022191,2]
[361860005,1747848644371,-433.56179786,0.00022191,2]
[361860007,1747848644381,-430.0,0.00022191,2]
[361860009,1747848644390,-430.0,0.00022191,2]
[361860011,1747848644400,-304.73219424,0.00022191,2]
[361860013,1747848644409,-174.01368691,0.00022191,2]
[361860015,1747848644419,-436.83759375,0.00022191,2]
[361860017,1747848644429,-448.67593375,0.00022191,2]
[361860019,1747848644443,-430.0,0.00022191,2]
[361860021,1747848644453,-430.0,0.00022191,2]
[361860023,1747848644462,-324.21501311,0.00022191,2]
[361860025,1747848644473,-437.03781562,0.00022191,2]
[361860027,1747848644482,-430.0,0.00022191,2]
[361860029,1747848644492,-364.1711418,0.00022191,2]
[361860031,1747848644502,-430.0,0.00022191,2]
[361860033,1747848644512,-436.40420164,0.00022191,2]
[361860035,1747848644522,-430.0,0.00022191,2]
[361860037,1747848644531,-430.0,0.00022191,2]
[361860039,1747848644541,-430.0,0.00022191,2]
[361860041,1747848644550,-434.59729179,0.00022191,2]
[361860043,1747848644560,-430.0,0.00022191,2]
[361860045,1747848644570,-342.72611491,0.00022191,2]
[361860047,1747848644580,-430.0,0.00022191,2]
[361860049,1747848644590,-315.46512068,0.00022191,2]
[361860051,1747848644599,-430.0,0.00022191,2]
[361860053,1747848644608,-403.70934457,0.00022191,2]
[361860054,1747848644618,-430.0,0.00022191,2]
[361860056,1747848644627,-430.0,0.00022191,2]
[361860058,1747848644636,-504.42560679,0.00022191,2]
[361860060,1747848644646,-436.67164634,0.00022191,2]
[361860062,1747848644656,-418.08404812,0.00022191,2]
[361860064,1747848644666,-430.0,0.00022191,2]
[361860066,1747848644675,-430.0,0.00022191,2]
[361860068,1747848644690,-436.69430599,0.00022191,2]
[361860070,1747848644703,-430.0,0.00022191,2]
[361860072,1747848644713,-509.93442164,0.00022191,2]
[361860074,1747848644724,-430.0,0.00022191,2]
[361860076,1747848644735,-430.0,0.00022191,2]
[361860078,1747848644745,-430.0,0.00022191,2]
[361860080,1747848644759,-215.54966305,0.00022191,2]
[361860082,1747848644771,-167.0940629,0.00022191,2]
[361860084,1747848644782,-430.0,0.00022191,2]
[361860086,1747848644794,-401.25219529,0.00022191,2]
[361860088,1747848644804,-346.20644571,0.00022191,2]
[361860090,1747848644815,-194.334208,0.00022191,7]
[361860092,1747848644826,-432.76999062,0.00022191,2]
[361860094,1747848644837,-430.8015481,0.00022191,2]
[361860096,1747848644848,-430.0,0.00022191,2]
[361860098,1747848644858,-430.0,0.00022191,2]
[361860100,1747848644870,-430.0,0.00022191,2]
[361860102,1747848644880,-430.0,0.00022191,2]
[361860104,1747848644892,-430.0,0.00022191,2]
[361860106,1747848644903,-412.17911374,0.00022191,2]
[361860108,1747848644913,-430.0,0.00022191,2]
[361860110,1747848644923,-434.29730706,0.00022191,2]
[361860112,1747848644933,-430.0,0.00022191,2]
[361860114,1747848644954,-430.0,0.00022191,2]
[361860116,1747848644965,-430.0,0.00022191,2]
[361860118,1747848644976,-368.99271537,0.00022191,2]
[361860120,1747848644986,-252.29704008,0.00022191,2]
[361860122,1747848644998,-272.47901835,0.00022191,2]
[361860123,1747848645009,-430.0,0.00022191,2]
[361860125,1747848645019,-438.43185993,0.00022191,2]
[361860127,1747848645029,-430.0,0.00022191,2]
[361860128,1747848645039,-271.24265137,0.00022191,2]
[361860130,1747848645050,-430.0,0.00022191,2]
[361860132,1747848645061,-430.0,0.00022191,2]
[361860134,1747848645072,-430.0,0.00022191,2]
[361860136,1747848645083,-278.0,0.00022191,2]
[361860138,1747848645094,-430.0,0.00022191,2]
[361860140,1747848645105,-21541.79,0.00022191,2]
[361860142,1747848645115,-405.40279732,0.00022191,2]
[361860144,1747848645126,-151.0,0.00022191,7]
[361860146,1747848645137,-151.0,0.00022191,7]
[361860148,1747848645148,-430.0,0.00022191,2]
[361860149,1747848645158,-572.5,0.00022191,2]
[361860151,1747848645168,-264.04,0.00022191,2]
[361860153,1747848645177,-430.0,0.00022191,2]
[361860155,1747848645194,-430.0,0.00022191,2]
[361860157,1747848645204,-224.31,0.00022191,2]
[361860159,1747848645214,-430.0,0.00022191,2]
[361860161,1747848645224,-430.0,0.00022191,2]
[361860163,1747848645234,-400.98601341,0.00022191,2]
[361860165,1747848645244,-430.0,0.00022191,2]
[361860167,1747848645254,-425.0,0.00022191,2]
[361860168,1747848645263,-430.0,0.00022191,2]
[361860170,1747848645273,-430.0,0.00022191,2]
[361860172,1747848645283,-430.0,0.00022191,2]
[361860174,1747848645292,-438.1340368,0.00022191,2]
[361860176,1747848645301,-430.0,0.00022191,2]
[361860178,1747848645311,-430.0,0.00022191,2]
[361860180,1747848645321,-444.79805159,0.00022191,2]
[361860182,1747848645331,-430.0,0.00022191,2]
[361860184,1747848645340,-430.0,0.00022191,2]
[361860186,1747848645350,-427.77189891,0.00022191,2]
[361860188,1747848645359,-430.0,0.00022191,2]
[361860190,1747848645369,-430.0,0.00022191,2]
[361860192,1747848645378,-430.0,0.00022191,2]
[361860194,1747848645388,-430.0,0.00022191,2]
[361860195,1747848645397,-489.33,0.00022191,2]
[361860197,1747848645407,-430.0,0.00022191,2]
[361860199,1747848645416,-430.0,0.00022191,2]
[361860202,1747848645427,-421.94,0.00022191,2]
[361860205,1747848645443,-430.0,0.00022191,2]
[361860206,1747848645454,-658.8,0.00022191,2]
[361860208,1747848645465,-151.0,0.00022191,7]
[361860210,1747848645476,-430.0,0.00022191,2]
[361860213,1747848645486,-430.0,0.00022191,2]
[361860216,1747848645497,-430.0,0.00022191,2]
[361860219,1747848645508,-430.0,0.00022191,2]
[361860222,1747848645518,-430.0,0.00022191,2]
[361860224,1747848645528,-430.0,0.00022191,2]
[361860226,1747848645538,-564.42,0.00022191,2]
[361860229,1747848645547,-430.0,0.00022191,2]
[361860232,1747848645557,-430.0,0.00022191,2]
[361860235,1747848645567,-430.0,0.00022191,2]
[361860237,1747848645577,-430.0,0.00022191,2]
[361860240,1747848645587,-438.90799441,0.00022191,2]
[361860243,1747848645596,-430.0,0.00022191,2]
[361860246,1747848645606,-151.0,0.00022191,7]
[361860249,1747848645615,-305.47,0.00022191,2]
[361860252,1747848645625,-430.0,0.00022191,2]
[361860256,1747848645634,-430.0,0.00022191,2]
[361860258,1747848645643,-430.0,0.00022191,2]
[361860261,1747848645653,-430.0,0.00022191,2]
[361860263,1747848645662,-430.0,0.00022191,2]
[361860266,1747848645672,-600.9,0.00022191,2]
[361860269,1747848645682,-442.41891775,0.00022191,2]
[361860273,1747848645699,-430.0,0.00022191,2]
[361860276,1747848645710,-430.0,0.00022191,2]
[361860279,1747848645721,-430.0,0.00022191,2]
[361860282,1747848645730,-500.0,0.00022191,2]
[361860285,1747848645740,-430.0,0.00022191,2]
[361860288,1747848645751,-430.0,0.00022191,2]
[361860291,1747848645762,-430.0,0.00022191,2]
[361860294,1747848645771,-415.22696666,0.00022191,2]
[361860297,1747848645781,-430.0,0.00022191,2]
[361860300,1747848645791,-430.0,0.00022191,2]
[361860302,1747848645800,-430.0,0.00022191,2]
[361860305,1747848645810,-1002.62,0.00022191,2]
[361860308,1747848645820,-430.0,0.00022191,2]
[361860311,1747848645831,-430.0,0.00022191,2]
[361860314,1747848645840,-430.0,0.00022191,2]
[361860317,1747848645850,-430.0,0.00022191,2]
[361860320,1747848645860,-489.52,0.00022191,2]
[361860322,1747848645871,-430.0,0.00022191,2]
[361860325,1747848645880,-284.88,0.00022191,2]
[361860328,1747848645891,-430.0,0.00022191,2]
[361860331,1747848645901,-430.0,0.00022191,2]
[361860334,1747848645911,-430.0,0.00022191,2]
[361860336,1747848645921,-218.47,0.00022191,2]
[361860356,1747848645931,-430.0,0.00022191,2]
[361860360,1747848646039,-566.21625718,0.00022191,2]
[361860362,1747848646050,-430.0,0.00022191,2]
[361860363,1747848646061,-150.26,0.00022191,2]
[361860366,1747848646072,-430.0,0.00022191,2]
[361860369,1747848646083,-518.36,0.00022191,2]
[361860372,1747848646094,-430.0,0.00022191,2]
[361860375,1747848646106,-430.0,0.00022191,2]
[361860378,1747848646116,-430.0,0.00022191,2]
[361860381,1747848646126,-430.0,0.00022191,2]
[361860384,1747848646136,-341.99279265,0.00022191,2]
[361860387,1747848646146,-250.16,0.00022191,2]
[361860390,1747848646155,-344.92622124,0.00022191,2]
[361860393,1747848646166,-300.0,0.00022191,2]
[361860396,1747848646176,-430.0,0.00022191,2]
[361860399,1747848646191,-430.0,0.00022191,2]
[361860402,1747848646201,-501.0,0.00022191,2]
[361860405,1747848646211,-549.78,0.00022191,2]
[361860408,1747848646224,-430.0,0.00022191,2]
[361860411,1747848646234,-430.0,0.00022191,2]
[361860414,1747848646244,-430.0,0.00022191,2]
[361860416,1747848646253,-151.0,0.00022191,7]
[361860419,1747848646263,-151.0,0.00022191,7]
[361860421,1747848646273,-240.22519269,0.00022191,7]
[361860423,1747848646283,-514.68690321,0.00022191,2]
[361860425,1747848646293,-430.0,0.00022191,2]
[361860426,1747848646302,-430.0,0.00022191,2]
[361860428,1747848646312,-430.0,0.00022191,2]
[361860430,1747848646322,-476.54,0.00022191,2]
[361860432,1747848646332,-430.0,0.00022191,2]
[361860435,1747848646342,-430.0,0.00022191,2]
[361860437,1747848646352,-360.0,0.00022191,2]
[361860439,1747848646361,-430.0,0.00022191,2]
[361860441,1747848646371,-321.9,0.00022191,2]
[361860443,1747848646381,-430.0,0.00022191,2]
[361860445,1747848646390,-554.05,0.00022191,2]
[361860447,1747848646401,-576.87,0.00022191,2]
[361860449,1747848646410,-510.58168938,0.00022191,2]
[361860450,1747848646419,-430.0,0.00022191,2]
[361860452,1747848646429,-151.0,0.00022279,7]
[361860454,1747848646443,-1476.70210682,0.00022279,6]
[361860456,1747848646453,-151.0,0.00022452,7]
[361860458,1747848646462,-151.0,0.00022452,7]
[361860460,1747848646472,-587.0,0.00022459,2]
[361860462,1747848646481,-362.68,0.00022465,2]
[361860464,1747848646491,-430.0,0.00022465,2]
[361860465,1747848646500,-430.0,0.00022465,2]
[361860467,1747848646510,-430.0,0.00022465,2]
[361860469,1747848646519,-151.0,0.00022465,7]
[361860471,1747848646530,-327.65218454,0.00022465,2]
[361860473,1747848646540,-430.0,0.00022465,2]
[361860475,1747848646549,-406.99774531,0.00022465,2]
[361860477,1747848646559,-409.94679946,0.00022465,2]
[361860479,1747848646569,-440.20567946,0.00022465,2]
[361860481,1747848646579,-430.0,0.00022465,2]
[361860482,1747848646589,-1986.19,0.00022465,2]
[361860484,1747848646598,-430.0,0.00022465,2]
[361860486,1747848646607,-463.30854865,0.00022465,2]
[361860487,1747848646617,-430.0,0.00022465,2]
[361860488,1747848646626,-430.0,0.00022465,2]
[361860489,1747848646637,-406.10566989,0.00022465,2]
[361860490,1747848646647,-150.58430178,0.00022465,2]
[361860491,1747848646656,-443.92331763,0.00022465,2]
[361860492,1747848646666,-439.43573796,0.00022465,2]
[361860493,1747848646677,-437.91108308,0.00022465,2]
[361860494,1747848646693,-430.0,0.00022465,2]
[361860495,1747848646703,-430.0,0.00022465,2]
[361860496,1747848646713,-430.0,0.00022465,2]
[361860497,1747848646725,-239.42145032,0.00022465,2]
[361860498,1747848646735,-430.0,0.00022465,2]
[361860499,1747848646744,-430.0,0.00022465,2]
[361860500,1747848646756,-500.0,0.00022465,2]
[361860501,1747848646767,-437.63254008,0.00022465,2]
[361860502,1747848646777,-430.0,0.00022465,2]
[361860503,1747848646786,-423.44,0.00022465,2]
[361860504,1747848646796,-430.0,0.00022465,2]
[361860505,1747848646806,-430.0,0.00022465,2]
[361860506,1747848646816,-430.0,0.00022465,2]
[361860507,1747848646825,-430.0,0.00022465,2]
[361860509,1747848646836,-500.0,0.00022465,2]
[361860510,1747848646846,-430.0,0.00022465,2]
[361860512,1747848646855,-430.0,0.00022465,2]
[361860514,1747848646865,-430.0,0.00022465,2]
[361860516,1747848646875,-430.0,0.00022465,2]
[361860518,1747848646884,-414.25123012,0.00022465,2]
[361860520,1747848646895,-237.12,0.00022465,2]
[361860522,1747848646904,-430.0,0.00022465,2]
[361860524,1747848646916,-270.1,0.00022465,2]
[361860526,1747848646926,-533.5,0.00022465,2]
[361860528,1747848646935,-527.98,0.00022465,2]
[361860530,1747848646950,-430.0,0.00022465,2]
[361860532,1747848646960,-430.0,0.00022465,2]
[361860534,1747848646969,-430.0,0.00022465,2]
[361860536,1747848646979,-400.0,0.00022465,2]
[361860538,1747848646989,-430.0,0.00022465,2]
[361860540,1747848647000,-21541.79,0.00022465,2]
[361860542,1747848647010,-296.78,0.00022465,2]
[361860544,1747848647019,-155.82,0.00022465,2]
[361860546,1747848647029,-430.0,0.00022465,2]
[361860548,1747848647039,-430.0,0.00022465,2]
[361860550,1747848647049,-430.0,0.00022465,2]
[361860552,1747848647059,-161.86,0.00022465,2]
[361860554,1747848647069,-184.76,0.00022465,2]
[361860555,1747848647080,-430.0,0.00022465,2]
[361860557,1747848647089,-423.48,0.00022465,2]
[361860559,1747848647099,-489.33,0.00022465,2]
[361860561,1747848647109,-235.14,0.00022465,2]
[361860563,1747848647119,-658.8,0.00022465,2]
[361860565,1747848647128,-151.0,0.00022465,7]
[361860567,1747848647139,-430.0,0.00022465,2]
[361860568,1747848647149,-438.48,0.00022465,2]
[361860569,1747848647159,-430.0,0.00022465,2]
[361860570,1747848647169,-430.0,0.00022465,2]
[361860571,1747848647179,-547.02,0.00022465,2]
[361860572,1747848647196,-463.57,0.00022465,2]
[361860573,1747848647207,-600.9,0.00022465,2]
[361860574,1747848647218,-430.0,0.00022465,2]
[361860575,1747848647229,-430.0,0.00022465,2]
[361860576,1747848647242,-179.75,0.00022465,2]
[361860577,1747848647253,-430.0,0.00022465,2]
[361860578,1747848647264,-430.0,0.00022465,2]
[361860579,1747848647275,-1002.62,0.00022465,2]
[361860580,1747848647286,-430.0,0.00022465,2]
[361860581,1747848647298,-430.0,0.00022465,2]
[361860582,1747848647309,-216.78,0.00022465,2]
[361860583,1747848647320,-361.3,0.00022465,2]
[361860584,1747848647331,-430.0,0.00022465,2]
[361860585,1747848647345,-428.18158049,0.00022465,2]
[361860586,1747848647356,-430.0,0.00022465,2]
[361860587,1747848647368,-430.0,0.00022465,2]
[361860588,1747848647379,-430.0,0.00022465,2]
[361860589,1747848647389,-430.0,0.00022465,2]
[361860590,1747848647400,-430.0,0.00022465,2]
[361860591,1747848647411,-430.0,0.00022465,2]
[361860592,1747848647421,-430.0,0.00022465,2]
[361860593,1747848647432,-501.0,0.00022465,2]
[361860594,1747848647450,-446.6,0.00022465,2]
[361860595,1747848647461,-430.0,0.00022465,2]
[361860596,1747848647471,-430.0,0.00022465,2]
[361860597,1747848647482,-430.0,0.00022465,2]
[361860598,1747848647493,-476.54,0.00022465,2]
[361860599,1747848647505,-163.16,0.00022465,2]
[361860600,1747848647515,-576.87,0.00022465,2]
[361860601,1747848647527,-390.0,0.00022465,2]
[361860602,1747848647538,-500.0,0.00022521,2]
[361860603,1747848647552,-500.0,0.00022521,2]